fUST/lending_fUST_20250627
["ID","MTS","AMOUNT","RATE_DAILY","PERIOD"]
[367992688,1750985455079,-460.0,0.0002081,2]
[367992689,1750985455089,-460.0,0.0002081,2]
[367992690,1750985455098,-460.0,0.0002081,2]
[367992691,1750985455108,-151.0,0.00020863,2]
[367992692,1750985455117,-151.0,0.00020863,2]
[367992693,1750985455126,-151.0,0.00020863,2]
[367992694,1750985455136,-160.452438,0.00020863,2]
[367992695,1750985455145,-151.0,0.00020863,2]
[367992696,1750985455155,-151.0,0.00020863,2]
[367992697,1750985455165,-1000.0,0.0002088,2]
[367992698,1750985455177,-1000.0,0.0002088,2]
[367992699,1750985455186,-151.0,0.000209,3]
[367992700,1750985455196,-401.12400828,0.00020915,2]
[367992701,1750985455210,-151.0,0.00020929,2]
[367992702,1750985455219,-151.0,0.00020929,2]
[367992703,1750985455229,-154.739229,0.00020929,2]
[367992704,1750985455239,-154.739229,0.00020929,2]
[367992705,1750985455249,-460.0,0.00020932,2]
[367992706,1750985455258,-460.0,0.00020932,2]
[367992707,1750985455268,-460.0,0.00020932,2]
[367992708,1750985455278,-152.531598,0.00020932,2]
[367992709,1750985455288,-460.0,0.00020932,2]
[367992710,1750985455298,-460.0,0.00020932,2]
[367992711,1750985455309,-460.0,0.00020932,2]
[367992712,1750985455321,-461.29169778,0.00020932,2]
[367992713,1750985455332,-151.0,0.00020932,2]
[367992714,1750985455341,-151.0,0.00020932,2]
[367992715,1750985455350,-460.0,0.00020932,2]
[367992716,1750985455361,-151.0,0.00020932,2]
[367992717,1750985455370,-151.0,0.00020932,2]
[367992718,1750985455380,-151.0,0.00020932,2]
[367992719,1750985455389,-151.0,0.00020932,2]
[367992720,1750985455399,-460.0,0.00020932,2]
[367992721,1750985455408,-151.0,0.00020932,2]
[367992722,1750985455418,-460.0,0.00020932,2]
[367992723,1750985455429,-460.0,0.00020932,2]
[367992724,1750985455439,-460.0,0.00020932,2]
[367992725,1750985455448,-460.0,0.00020932,2]
[367992726,1750985455457,-151.0,0.00020932,2]
[367992727,1750985455466,-151.0,0.00020932,2]
[367992728,1750985455476,-151.0,0.00020932,2]
[367992729,1750985455485,-151.0,0.00020932,2]
[367992730,1750985455495,-211.044309,0.00020932,2]
[367992731,1750985455504,-211.044309,0.00020932,2]
[367992732,1750985455513,-249.737336,0.00020932,2]
[367992733,1750985455523,-249.737336,0.00020932,2]
[367992734,1750985455535,-294.015293,0.00020932,2]
[367992735,1750985455544,-294.015293,0.00020932,2]
[367992736,1750985455554,-9822.98156475,0.00020934,4]
[367992737,1750985455564,-151.0,0.00020935,2]
[367992738,1750985455573,-188.521677,0.00020935,2]
[367992739,1750985455583,-188.521677,0.00020935,2]
[367992740,1750985455592,-239.955208,0.00020935,2]
[367992741,1750985455603,-239.955208,0.00020935,2]
[367992742,1750985455613,-431.33261472,0.00020974,2]
[367992743,1750985455622,-151.0,0.0002098,2]
[367992744,1750985455632,-234.912058,0.0002098,2]
[367992745,1750985455641,-155.396061,0.00021,2]
[367992746,1750985455650,-152.0,0.00021,2]
[367992747,1750985455660,-160.0,0.00021,4]
[367992748,1750985455671,-160.0,0.00021,4]
[367992749,1750985455682,-160.0,0.00021,4]
[367992750,1750985455691,-160.0,0.00021,5]
[367992751,1750985455701,-174.0,0.00021,5]
[367992752,1750985455711,-174.0,0.00021,6]
[367992753,1750985455721,-174.0,0.00021,6]
[367992754,1750985455730,-174.0,0.00021,7]
[367992755,1750985455740,-174.0,0.00021,7]
[367992756,1750985455749,-174.22123036,0.00021,3]
[367992757,1750985455759,-350.46,0.00021009,3]
[367992758,1750985455769,-325.62542227,0.00021011,2]
[367992759,1750985455778,-476.49,0.00021011,2]
[367992760,1750985455787,-460.0,0.00021011,2]
[367992761,1750985455797,-460.0,0.00021011,2]
[367992762,1750985455806,-460.0,0.00021012,2]
[367992763,1750985455816,-460.0,0.00021012,2]
[367992764,1750985455825,-484.57,0.00021012,2]
[367992765,1750985455836,-496.21,0.00021012,2]
[367992766,1750985455846,-739.56,0.00021012,2]
[367992767,1750985455855,-2888.24,0.00021012,2]
[367992768,1750985455865,-2989.15,0.00021012,2]
[367992769,1750985455874,-3488.98,0.00021012,2]
[367992770,1750985455883,-470.26,0.00021012,2]
[367992771,1750985455893,-460.0,0.00021013,2]
[367992772,1750985455902,-460.0,0.00021013,2]
[367992773,1750985455911,-460.0,0.00021013,2]
[367992774,1750985455921,-460.0,0.00021013,2]
[367992775,1750985455931,-477.33,0.00021013,2]
[367992776,1750985455940,-435.61,0.00021013,2]
[367992777,1750985455949,-460.0,0.00021013,2]
[367992778,1750985455958,-460.0,0.00021014,2]
[367992779,1750985455967,-674.66,0.00021014,2]
[367992780,1750985455978,-2355.03,0.00021014,2]
[367992781,1750985455987,-1040.41,0.00021014,2]
[367992782,1750985455995,-2625.1,0.00021014,2]
[367992783,1750985456005,-2936.96,0.00021014,2]
[367992784,1750985456014,-661.24,0.00021014,2]
[367992785,1750985456023,-1924.14,0.00021014,2]
[367992786,1750985456033,-460.0,0.00021014,2]
[367992787,1750985456044,-760.31,0.00021014,2]
[367992788,1750985456053,-911.06,0.00021014,2]
[367992789,1750985456062,-865.11,0.00021014,2]
[367992790,1750985456071,-859.44,0.00021014,2]
[367992791,1750985456081,-2585.81,0.00021014,2]
[367992792,1750985456090,-460.0,0.00021014,2]
[367992793,1750985456099,-213.64135167,0.00021014,2]
[367992794,1750985456108,-742.21,0.00021014,2]
[367992795,1750985456118,-1135.56,0.00021014,2]
[367992796,1750985456127,-746.24,0.00021014,2]
[367992797,1750985456136,-460.0,0.00021014,2]
[367992798,1750985456146,-460.0,0.00021015,2]
[367992799,1750985456155,-460.0,0.00021015,2]
[367992800,1750985456164,-639.43,0.00021015,2]
[367992801,1750985456174,-506.47,0.00021015,2]
[367992802,1750985456183,-460.0,0.00021015,2]
[367992803,1750985456192,-460.0,0.00021015,2]
[367992804,1750985456201,-460.0,0.00021015,2]
[367992805,1750985456211,-472.22,0.00021015,2]
[367992806,1750985456220,-363.83,0.00021015,2]
[367992807,1750985456229,-832.88,0.00021015,2]
[367992808,1750985456239,-531.59,0.00021015,2]
[367992809,1750985456248,-904.59,0.00021015,2]
[367992810,1750985456257,-636.67,0.00021015,2]
[367992811,1750985456267,-719.61,0.00021015,2]
[367992812,1750985456276,-1520.21,0.00021015,2]
[367992813,1750985456286,-486.19,0.00021015,2]
[367992814,1750985456295,-952.51,0.00021015,2]
[367992815,1750985456304,-232.00583023,0.00021015,2]
[367992816,1750985456315,-743.46,0.00021015,2]
[367992817,1750985456324,-737.47,0.00021015,2]
[367992818,1750985456333,-905.43,0.00021015,2]
[367992819,1750985456343,-180.27166061,0.00021015,2]
[367992820,1750985456353,-668.6,0.00021015,2]
[367992821,1750985456363,-579.29471919,0.00021015,2]
[367992822,1750985456373,-847.36,0.00021015,2]
[367992823,1750985456382,-151.0,0.00021015,2]
[367992824,1750985456391,-151.0,0.00021015,2]
[367992825,1750985456400,-151.0,0.00021015,2]
[367992826,1750985456409,-151.0,0.00021015,2]
[367992827,1750985456421,-630.78,0.00021015,2]
[367992828,1750985456431,-460.0,0.00021015,2]
[367992829,1750985456440,-1361.83,0.00021015,2]
[367992830,1750985456449,-460.0,0.00021015,2]
[367992831,1750985456458,-151.0,0.00021015,2]
[367992832,1750985456468,-460.0,0.00021015,2]
[367992833,1750985456477,-151.0,0.00021015,2]
[367992834,1750985456486,-460.0,0.00021016,2]
[367992835,1750985456495,-460.0,0.00021016,2]
[367992836,1750985456505,-460.0,0.00021016,2]
[367992837,1750985456514,-460.0,0.00021016,2]
[367992838,1750985456523,-460.0,0.00021016,2]
[367992839,1750985456532,-460.0,0.00021016,2]
[367992840,1750985456543,-551.7,0.00021016,2]
[367992841,1750985456552,-460.0,0.00021016,2]
[367992842,1750985456561,-460.0,0.00021016,2]
[367992843,1750985456571,-1038.4,0.00021016,2]
[367992844,1750985456580,-509.28360486,0.00021016,2]
[367992845,1750985456589,-460.0,0.00021016,2]
[367992846,1750985456599,-533.46,0.00021016,2]
[367992847,1750985456608,-460.0,0.00021016,2]
[367992848,1750985456617,-419.51160971,0.00021017,2]
[367992849,1750985456627,-615.81,0.00021017,2]
[367992850,1750985456636,-6377.11,0.00021017,2]
[367992851,1750985456645,-605.53,0.00021017,2]
[367992852,1750985456655,-1340.26,0.00021017,2]
[367992853,1750985456664,-534.1,0.00021017,2]
[367992854,1750985456673,-460.0,0.00021017,2]
[367992855,1750985456683,-2161.84,0.00021017,2]
[367992856,1750985456692,-884.85,0.00021017,2]
[367992857,1750985456701,-1202.58,0.00021017,2]
[367992858,1750985456711,-749.5,0.00021017,2]
[367992859,1750985456720,-481.04,0.00021017,2]
[367992860,1750985456729,-1182.79,0.00021017,2]
[367992861,1750985456739,-463.79,0.00021017,2]
[367992862,1750985456748,-2742.58,0.00021017,2]
[367992863,1750985456758,-1047.15,0.00021017,2]
[367992864,1750985456767,-460.0,0.00021018,2]
[367992865,1750985456776,-460.0,0.00021018,2]
[367992866,1750985456786,-151.0,0.00021018,2]
[367992867,1750985456795,-576.849069,0.00021018,2]
[367992868,1750985456804,-236.0235337,0.00021019,2]
[367992869,1750985456813,-535.82,0.00021019,2]
[367992870,1750985456823,-1308.61,0.00021019,2]
[367992871,1750985456832,-460.0,0.00021019,2]
[367992872,1750985456845,-693.75,0.00021019,2]
[367992873,1750985456855,-1933.82,0.00021019,2]
[367992874,1750985456865,-1747.35,0.00021019,2]
[367992875,1750985456874,-460.0,0.00021019,2]
[367992876,1750985456885,-460.0,0.00021019,2]
[367992877,1750985456895,-2047.33,0.00021019,2]
[367992878,1750985456904,-460.0,0.00021019,2]
[367992879,1750985456914,-1500.0,0.00021068,2]
[367992880,1750985456923,-460.0,0.00021084,2]
[367992881,1750985456933,-460.0,0.00021084,2]
[367992882,1750985456942,-460.0,0.00021084,2]
[367992883,1750985456951,-460.0,0.00021084,2]
[367992884,1750985456961,-151.0,0.00021084,2]
[367992885,1750985456970,-460.0,0.00021084,2]
[367992886,1750985456980,-460.0,0.00021084,2]
[367992887,1750985456989,-625.43,0.00021084,2]
[367992888,1750985456999,-460.0,0.00021084,2]
[367992889,1750985457009,-487.96,0.00021084,2]
[367992890,1750985457018,-622.78,0.00021084,2]
[367992891,1750985457027,-460.0,0.00021084,2]
[367992892,1750985457037,-460.0,0.00021084,2]
[367992893,1750985457046,-984.49,0.00021084,2]
[367992894,1750985457055,-460.0,0.00021084,2]
[367992895,1750985457065,-741.45,0.00021084,2]
[367992896,1750985457075,-483.21,0.00021084,2]
[367992897,1750985457084,-460.0,0.00021084,2]
[367992898,1750985457215,-460.0,0.00021084,2]
[367992899,1750985457225,-709.52,0.00021084,2]
[367992900,1750985457235,-460.0,0.00021084,2]
[367992901,1750985457244,-460.0,0.00021084,2]
[367992902,1750985457253,-610.09,0.00021084,2]
[367992903,1750985457262,-460.0,0.00021084,2]
[367992904,1750985457271,-709.37,0.00021084,2]
[367992905,1750985457280,-151.0,0.00021084,2]
[367992906,1750985457289,-151.0,0.00021084,2]
[367992907,1750985457299,-939.16,0.00021084,2]
[367992908,1750985457307,-460.0,0.00021084,2]
[367992909,1750985457316,-460.0,0.00021084,2]
[367992910,1750985457325,-542.75,0.00021084,2]
[367992911,1750985457334,-460.0,0.00021084,2]
[367992912,1750985457344,-511.49,0.00021084,2]
[367992913,1750985457353,-582.91,0.00021084,2]
[367992914,1750985457362,-460.0,0.00021084,2]
[367992915,1750985457371,-456.31951953,0.00021084,2]
[367992916,1750985457381,-460.0,0.00021084,2]
[367992917,1750985457390,-713.85,0.00021084,2]
[367992918,1750985457399,-460.0,0.00021084,2]
[367992919,1750985457408,-460.0,0.00021084,2]
[367992920,1750985457417,-460.0,0.00021084,2]
[367992921,1750985457426,-551.11,0.00021084,2]
[367992922,1750985457437,-460.0,0.00021084,2]
[367992923,1750985457447,-460.0,0.00021084,2]
[367992924,1750985457457,-460.0,0.00021084,2]
[367992925,1750985457469,-460.0,0.00021084,2]
[367992926,1750985457478,-756.69,0.00021084,2]
[367992927,1750985457487,-1166.64,0.00021084,2]
[367992928,1750985457497,-460.0,0.00021084,2]
[367992929,1750985457506,-467.47,0.00021084,2]
[367992930,1750985457516,-195.99500742,0.00021084,2]
[367992931,1750985457526,-460.0,0.00021084,2]
[367992932,1750985457536,-460.0,0.00021084,2]
[367992933,1750985457546,-574.99,0.00021084,2]
[367992934,1750985457555,-460.0,0.00021084,2]
[367992935,1750985457565,-460.0,0.00021084,2]
[367992936,1750985457574,-460.0,0.00021084,2]
[367992937,1750985457585,-460.0,0.00021084,2]
[367992938,1750985457594,-460.0,0.00021084,2]
[367992939,1750985457603,-460.0,0.00021084,2]
[367992940,1750985457613,-460.0,0.00021084,2]
[367992941,1750985457623,-507.25,0.00021084,2]
[367992942,1750985457632,-460.0,0.00021084,2]
[367992943,1750985457642,-460.0,0.00021084,2]
[367992944,1750985457651,-151.0,0.00021086,4]
[367992945,1750985457661,-600.0,0.0002112,2]
[367992946,1750985457670,-151.0,0.00021137,2]
[367992947,1750985457680,-9822.98156475,0.00021141,4]
[367992948,1750985457689,-409.430805,0.00021165,4]
[367992949,1750985457699,-160.0,0.000212,5]
[367992950,1750985457708,-160.0,0.000212,5]
[367992951,1750985457717,-160.0,0.000212,5]
[367992952,1750985457726,-151.0,0.00021203,2]
[367992953,1750985457737,-154.739229,0.00021203,2]
[367992954,1750985457746,-154.739229,0.00021203,2]
[367992955,1750985457755,-151.0,0.00021203,2]
[367992956,1750985457765,-151.0,0.00021203,2]
[367992957,1750985457774,-151.0,0.00021203,2]
[367992958,1750985457784,-151.0,0.00021203,2]
[367992959,1750985457793,-211.044309,0.00021203,2]
[367992960,1750985457802,-211.044309,0.00021203,2]
[367992961,1750985457811,-249.737336,0.00021203,2]
[367992962,1750985457820,-249.737336,0.00021203,2]
[367992963,1750985457829,-187.964155,0.00021203,2]
[367992964,1750985457842,-294.015293,0.00021203,2]
[367992965,1750985457851,-294.015293,0.00021203,2]
[367992966,1750985457860,-188.521677,0.00021203,2]
[367992967,1750985457870,-188.521677,0.00021203,2]
[367992968,1750985457878,-239.955208,0.00021203,2]
[367992969,1750985457888,-239.955208,0.00021203,2]
[367992970,1750985457896,-558.60413504,0.00021206,2]
[367992971,1750985457905,-276.441491,0.00021206,2]
[367992972,1750985457915,-276.441491,0.00021206,2]
[367992973,1750985457925,-151.0,0.00021206,2]
[367992974,1750985457934,-151.0,0.00021206,2]
[367992975,1750985457943,-151.0,0.00021206,2]
[367992976,1750985457953,-479.83803242,0.00021206,2]
[367992977,1750985457963,-151.0,0.00021206,2]
[367992978,1750985457972,-403.75503242,0.00021206,2]
[367992979,1750985457982,-460.0,0.00021206,2]
[367992980,1750985457992,-460.0,0.00021206,2]
[367992981,1750985458001,-151.0,0.00021207,2]
[367992982,1750985458010,-151.0,0.00021217,4]
[367992983,1750985458019,-151.0,0.00021239,2]
[367992984,1750985458029,-151.0,0.00021239,2]
[367992985,1750985458039,-151.0,0.00021239,2]
[367992986,1750985458049,-151.0,0.00021242,2]
[367992987,1750985458059,-151.0,0.00021242,2]
[367992988,1750985458069,-151.0,0.00021242,2]
[367992989,1750985458078,-151.0,0.00021242,2]
[367992990,1750985458087,-151.0,0.00021253,2]
[367992991,1750985458097,-151.0,0.00021253,2]
[367992992,1750985458107,-500.0,0.00021253,2]
[367992993,1750985458115,-198.0,0.00021253,2]
[367992994,1750985458126,-151.0,0.00021253,2]
[367992995,1750985458135,-151.0,0.00021253,2]
[367992996,1750985458144,-151.0,0.00021253,2]
[367992997,1750985458153,-500.0,0.0002128,2]
[367992998,1750985458163,-460.0,0.00021285,2]
[367992999,1750985458172,-476.49,0.00021285,2]
[367993000,1750985458183,-460.0,0.00021285,2]
[367993001,1750985458193,-460.0,0.00021286,2]
[367993002,1750985458202,-460.0,0.00021286,2]
[367993003,1750985458212,-484.57,0.00021286,2]
[367993004,1750985458222,-496.21,0.00021286,2]
[367993005,1750985458231,-739.56,0.00021286,2]
[367993006,1750985458240,-2888.24,0.00021286,2]
[367993007,1750985458249,-2989.15,0.00021286,2]
[367993008,1750985458259,-3488.98,0.00021286,2]
[367993009,1750985458269,-470.26,0.00021286,2]
[367993010,1750985458277,-460.0,0.00021287,2]
[367993011,1750985458287,-460.0,0.00021287,2]
[367993012,1750985458296,-460.0,0.00021287,2]
[367993013,1750985458307,-460.0,0.00021287,2]
[367993014,1750985458316,-477.33,0.00021287,2]
[367993015,1750985458325,-405.97673197,0.00021287,2]
[367993016,1750985458336,-460.0,0.00021288,2]
[367993017,1750985458346,-674.66,0.00021288,2]
[367993018,1750985458356,-2355.03,0.00021288,2]
[367993019,1750985458366,-1040.41,0.00021288,2]
[367993020,1750985458376,-2625.1,0.00021288,2]
[367993021,1750985458385,-2936.96,0.00021288,2]
[367993022,1750985458394,-661.24,0.00021288,2]
[367993023,1750985458404,-1924.14,0.00021288,2]
[367993024,1750985458413,-460.0,0.00021288,2]
[367993025,1750985458422,-760.31,0.00021288,2]
[367993026,1750985458431,-911.06,0.00021288,2]
[367993027,1750985458440,-865.11,0.00021288,2]
[367993028,1750985458450,-859.44,0.00021288,2]
[367993029,1750985458460,-2585.81,0.00021288,2]
[367993030,1750985458469,-460.0,0.00021288,2]
[367993031,1750985458479,-742.21,0.00021288,2]
[367993032,1750985458488,-151.0,0.00021288,2]
[367993033,1750985458497,-151.0,0.00021288,2]
[367993034,1750985458506,-1135.56,0.00021288,2]
[367993035,1750985458515,-151.0,0.00021288,2]
[367993036,1750985458524,-746.24,0.00021288,2]
[367993037,1750985458533,-233.724708,0.00021288,2]
[367993038,1750985458543,-460.0,0.00021288,2]
[367993039,1750985458552,-151.0,0.00021288,2]
[367993040,1750985458561,-151.0,0.00021288,2]
[367993041,1750985458570,-460.0,0.00021289,2]
[367993042,1750985458580,-460.0,0.00021289,2]
[367993043,1750985458589,-639.43,0.00021289,2]
[367993044,1750985458599,-506.47,0.00021289,2]
[367993045,1750985458608,-460.0,0.00021289,2]
[367993046,1750985458617,-460.0,0.00021289,2]
[367993047,1750985458626,-460.0,0.00021289,2]
[367993048,1750985458636,-472.22,0.00021289,2]
[367993049,1750985458645,-832.88,0.00021289,2]
[367993050,1750985458654,-531.59,0.00021289,2]
[367993051,1750985458664,-904.59,0.00021289,2]
[367993052,1750985458673,-636.67,0.00021289,2]
[367993053,1750985458683,-719.61,0.00021289,2]
[367993054,1750985458692,-1520.21,0.00021289,2]
[367993055,1750985458701,-486.19,0.00021289,2]
[367993056,1750985458711,-952.51,0.00021289,2]
[367993057,1750985458721,-743.46,0.00021289,2]
[367993058,1750985458730,-737.47,0.00021289,2]
[367993059,1750985458739,-905.43,0.00021289,2]
[367993060,1750985458749,-668.6,0.00021289,2]
[367993061,1750985458759,-847.36,0.00021289,2]
[367993062,1750985458768,-630.78,0.00021289,2]
[367993063,1750985458777,-215.0886091,0.00021289,2]
[367993064,1750985458787,-460.0,0.00021289,2]
[367993065,1750985458795,-1361.83,0.00021289,2]
[367993066,1750985458805,-460.0,0.00021289,2]
[367993067,1750985458814,-460.0,0.0002129,2]
[367993068,1750985458822,-460.0,0.0002129,2]
[367993069,1750985458832,-582.141452,0.0002129,2]
[367993070,1750985458845,-460.0,0.0002129,2]
[367993071,1750985458855,-460.0,0.0002129,2]
[367993072,1750985458865,-460.0,0.0002129,2]
[367993073,1750985458874,-551.7,0.0002129,2]
[367993074,1750985458885,-460.0,0.0002129,2]
[367993075,1750985458895,-460.0,0.0002129,2]
[367993076,1750985458904,-1038.4,0.0002129,2]
[367993077,1750985458914,-460.0,0.0002129,2]
[367993078,1750985458924,-533.46,0.0002129,2]
[367993079,1750985458935,-460.0,0.0002129,2]
[367993080,1750985458944,-241.998029,0.00021291,2]
[367993081,1750985458953,-576.849069,0.00021291,2]
[367993082,1750985458962,-615.81,0.00021291,2]
[367993083,1750985458972,-6377.11,0.00021291,2]
[367993084,1750985458981,-605.53,0.00021291,2]
[367993085,1750985458990,-1340.26,0.00021291,2]
[367993086,1750985459001,-534.1,0.00021291,2]
[367993087,1750985459010,-460.0,0.00021291,2]
[367993088,1750985459020,-2161.84,0.00021291,2]
[367993089,1750985459029,-884.85,0.00021291,2]
[367993090,1750985459038,-1202.58,0.00021291,2]
[367993091,1750985459047,-749.5,0.00021291,2]
[367993092,1750985459056,-481.04,0.00021291,2]
[367993093,1750985459065,-1182.79,0.00021291,2]
[367993094,1750985459074,-463.79,0.00021291,2]
[367993095,1750985459083,-2742.58,0.00021291,2]
[367993096,1750985459092,-1047.15,0.00021291,2]
[367993097,1750985459101,-460.0,0.00021292,2]
[367993098,1750985459111,-460.0,0.00021292,2]
[367993099,1750985459120,-535.82,0.00021293,2]
[367993100,1750985459129,-151.0,0.00021293,2]
[367993101,1750985459138,-1308.61,0.00021293,2]
[367993102,1750985459148,-460.0,0.00021293,2]
[367993103,1750985459157,-693.75,0.00021293,2]
[367993104,1750985459166,-1933.82,0.00021293,2]
[367993105,1750985459175,-1747.35,0.00021293,2]
[367993106,1750985459185,-440.0,0.00021293,2]
[367993107,1750985459195,-460.0,0.00021293,2]
[367993108,1750985459203,-2047.33,0.00021293,2]
[367993109,1750985459213,-460.0,0.00021293,2]
[367993110,1750985459223,-499.554,0.00021296,2]
[367993111,1750985459232,-500.0,0.00021308,2]
[367993112,1750985459241,-500.0,0.00021335,2]
[367993113,1750985459252,-600.0,0.0002134,2]
[367993114,1750985459261,-151.0,0.00021347,4]
[367993115,1750985459270,-151.0,0.00021348,2]
[367993116,1750985459280,-151.0,0.00021348,2]
[367993117,1750985459289,-9822.98156475,0.00021348,5]
[367993118,1750985459298,-200.0,0.00021357,2]
[367993119,1750985459308,-34145.67747819,0.00021358,2]
[367993120,1750985459318,-80735.07664301,0.00021358,2]
[367993121,1750985459327,-460.0,0.00021358,2]
[367993122,1750985459336,-460.0,0.00021358,2]
[367993123,1750985459345,-460.0,0.00021358,2]
[367993124,1750985459354,-460.0,0.00021358,2]
[367993125,1750985459363,-460.0,0.00021358,2]
[367993126,1750985459374,-460.0,0.00021358,2]
[367993127,1750985459386,-625.43,0.00021358,2]
[367993128,1750985459395,-460.0,0.00021358,2]
[367993129,1750985459405,-487.96,0.00021358,2]
[367993130,1750985459414,-622.78,0.00021358,2]
[367993131,1750985459423,-460.0,0.00021358,2]
[367993132,1750985459433,-460.0,0.00021358,2]
[367993133,1750985459443,-984.49,0.00021358,2]
[367993134,1750985459452,-460.0,0.00021358,2]
[367993135,1750985459461,-741.45,0.00021358,2]
[367993136,1750985459470,-483.21,0.00021358,2]
[367993137,1750985459480,-460.0,0.00021358,2]
[367993138,1750985459489,-460.0,0.00021358,2]
[367993139,1750985459498,-709.52,0.00021358,2]
[367993140,1750985459507,-460.0,0.00021358,2]
[367993141,1750985459516,-460.0,0.00021358,2]
[367993142,1750985459526,-610.09,0.00021358,2]
[367993143,1750985459535,-594.42,0.00021358,2]
[367993144,1750985459544,-709.37,0.00021358,2]
[367993145,1750985459554,-939.16,0.00021358,2]
[367993146,1750985459563,-460.0,0.00021358,2]
[367993147,1750985459573,-341.77,0.00021358,2]
[367993148,1750985459582,-542.75,0.00021358,2]
[367993149,1750985459592,-460.0,0.00021358,2]
[367993150,1750985459601,-511.49,0.00021358,2]
[367993151,1750985459611,-582.91,0.00021358,2]
[367993152,1750985459620,-460.0,0.00021358,2]
[367993153,1750985459629,-460.0,0.00021358,2]
[367993154,1750985459639,-713.85,0.00021358,2]
[367993155,1750985459648,-460.0,0.00021358,2]
[367993156,1750985459658,-460.0,0.00021358,2]
[367993157,1750985459677,-460.0,0.00021358,2]
[367993158,1750985459689,-188.521677,0.00021358,2]
[367993159,1750985459699,-188.521677,0.00021358,2]
[367993160,1750985459709,-551.11,0.00021358,2]
[367993161,1750985459718,-460.0,0.00021358,2]
[367993162,1750985459727,-239.955208,0.00021358,2]
[367993163,1750985459736,-239.955208,0.00021358,2]
[367993164,1750985459746,-460.0,0.00021358,2]
[367993165,1750985459756,-460.0,0.00021358,2]
[367993166,1750985459766,-460.0,0.00021358,2]
[367993167,1750985459775,-756.69,0.00021358,2]
[367993168,1750985459784,-1166.64,0.00021358,2]
[367993169,1750985459794,-460.0,0.00021358,2]
[367993170,1750985459804,-467.47,0.00021358,2]
[367993171,1750985459813,-460.0,0.00021358,2]
[367993172,1750985459822,-574.99,0.00021358,2]
[367993173,1750985459831,-460.0,0.00021358,2]
[367993174,1750985459844,-460.0,0.00021358,2]
[367993175,1750985459854,-460.0,0.00021358,2]
[367993176,1750985459864,-460.0,0.00021358,2]
[367993177,1750985459873,-460.0,0.00021358,2]
[367993178,1750985459998,-460.0,0.00021358,2]
[367993179,1750985460008,-460.0,0.00021358,2]
[367993180,1750985460017,-460.0,0.00021358,2]
[367993181,1750985460028,-500.0,0.00021363,2]
[367993182,1750985460037,-500.0,0.0002139,2]
[367993183,1750985460047,-420.0,0.00021394,2]
[367993184,1750985460057,-420.0,0.00021394,2]
[367993185,1750985460067,-151.0,0.00021398,2]
[367993186,1750985460077,-151.0,0.00021398,2]
[367993187,1750985460086,-151.0,0.00021398,2]